[Event "*** Titled Tuesday Blitz"]
[Site "Chess.com"]
[Date "2020.02.04"]
[Round "1"]
[White "Chigorinetz"]
[Black "Siemba"]
[Result "1-0"]
[WhiteElo "2566"]
[BlackElo "2198"]
[TimeControl "180+2"]
[EndTime "13:09:15 PST"]
[Termination "Chigorinetz won on time"]

1. e4 {[%clk 0:03:01.9]} 1... c5 {[%clk 0:02:56.6]} 2. Nc3 {[%clk 0:03:01.7]}
2... e6 {[%clk 0:02:52.7]} 3. Nge2 {[%clk 0:03:02.3]} 3... Nc6 {[%clk
0:02:45.9]} 4. g3 {[%clk 0:03:02.4]} 4... d5 {[%clk 0:02:45.5]} 5. exd5 {[%clk
0:03:02.2]} 5... exd5 {[%clk 0:02:47.4]} 6. d4 {[%clk 0:03:02.8]} 6... cxd4
{[%clk 0:02:46.3]} 7. Nxd4 {[%clk 0:03:02.4]} 7... Bc5 {[%clk 0:02:47.6]} 8. Be3
{[%clk 0:03:02.2]} 8... Nxd4 {[%clk 0:02:41.2]} 9. Bxd4 {[%clk 0:03:02.2]} 9...
Qe7+ {[%clk 0:02:40.3]} 10. Be2 {[%clk 0:02:59.3]} 10... Be6 {[%clk 0:02:40.4]}
11. O-O {[%clk 0:02:56.2]} 11... Nf6 {[%clk 0:02:38.6]} 12. Bb5+ {[%clk
0:02:56.6]} 12... Nd7 {[%clk 0:02:32.4]} 13. Re1 {[%clk 0:02:55.2]} 13... Bxd4
{[%clk 0:02:17.8]} 14. Qxd4 {[%clk 0:02:53.7]} 14... O-O {[%clk 0:02:19.1]} 15.
Nxd5 {[%clk 0:02:49.9]} 15... Qc5 {[%clk 0:02:17.4]} 16. Qxc5 {[%clk 0:02:44]}
16... Nxc5 {[%clk 0:02:19.3]} 17. Nf4 {[%clk 0:02:36.8]} 17... a6 {[%clk
0:02:18.2]} 18. Bf1 {[%clk 0:02:35.8]} 18... Bg4 {[%clk 0:01:57.8]} 19. Bg2
{[%clk 0:02:26.5]} 19... a5 {[%clk 0:01:49.4]} 20. h3 {[%clk 0:02:26.6]} 20...
Bd7 {[%clk 0:01:48.9]} 21. Rad1 {[%clk 0:02:25.2]} 21... Bc6 {[%clk 0:01:46.1]}
22. Bxc6 {[%clk 0:02:23.4]} 22... bxc6 {[%clk 0:01:48]} 23. Rd6 {[%clk
0:02:22.5]} 23... Rac8 {[%clk 0:01:46.9]} 24. Re3 {[%clk 0:02:21.3]} 24... Rfd8
{[%clk 0:01:42.3]} 25. Rxd8+ {[%clk 0:02:17.5]} 25... Rxd8 {[%clk 0:01:44.2]}
26. Rc3 {[%clk 0:02:06.8]} 26... Ne4 {[%clk 0:01:35.7]} 27. Rxc6 {[%clk
0:02:05.9]} 27... Rd1+ {[%clk 0:01:31.6]} 28. Kg2 {[%clk 0:02:05.5]} 28... g5
{[%clk 0:01:32.9]} 29. Nd3 {[%clk 0:02:02.5]} 29... Ra1 {[%clk 0:01:17.8]} 30.
a3 {[%clk 0:01:54.5]} 30... Kg7 {[%clk 0:01:09.8]} 31. Kf3 {[%clk 0:01:54.8]}
31... Nd2+ {[%clk 0:01:03.8]} 32. Ke2 {[%clk 0:01:52.3]} 32... Ne4 {[%clk
0:01:03.4]} 33. Ke3 {[%clk 0:01:48.7]} 33... f5 {[%clk 0:01:00.1]} 34. g4 {[%clk
0:01:46.4]} 34... fxg4 {[%clk 0:00:54.2]} 35. hxg4 {[%clk 0:01:45.1]} 35... Nf6
{[%clk 0:00:54.6]} 36. f3 {[%clk 0:01:41.7]} 36... h5 {[%clk 0:00:29]} 37. gxh5
{[%clk 0:01:41.7]} 37... Nxh5 {[%clk 0:00:30.9]} 38. c4 {[%clk 0:01:39.8]} 38...
Nf6 {[%clk 0:00:22.9]} 39. c5 {[%clk 0:01:27.4]} 39... Rd1 {[%clk 0:00:21.6]}
40. Ke2 {[%clk 0:01:19]} 40... Rb1 {[%clk 0:00:16.8]} 41. b4 {[%clk 0:01:14.3]}
41... axb4 {[%clk 0:00:16.7]} 42. Rc7+ {[%clk 0:01:09.4]} 42... Kg6 {[%clk
0:00:17.2]} 43. axb4 {[%clk 0:01:10.6]} 43... Nd5 {[%clk 0:00:18.2]} 44. Rb7
{[%clk 0:01:10.4]} 44... Rb3 {[%clk 0:00:16.5]} 45. c6 {[%clk 0:01:07.2]} 45...
Rc3 {[%clk 0:00:16.4]} 46. b5 {[%clk 0:01:07]} 46... Rc2+ {[%clk 0:00:15.6]} 47.
Kd1 {[%clk 0:01:00.2]} 47... Ne3+ {[%clk 0:00:16.7]} 48. Ke1 {[%clk 0:01:00.6]}
48... Ng2+ {[%clk 0:00:18.2]} 49. Kf1 {[%clk 0:01:00.7]} 49... Ne3+ {[%clk
0:00:19.7]} 50. Kg1 {[%clk 0:01:01.4]} 50... Rg2+ {[%clk 0:00:10.6]} 51. Kh1
{[%clk 0:01:00.9]} 51... Rd2 {[%clk 0:00:11]} 52. c7 {[%clk 0:00:52.5]} 52...
Rc2 {[%clk 0:00:10.7]} 53. Rb6+ {[%clk 0:00:44.7]} 53... Kh5 {[%clk 0:00:07]}
54. Rc6 {[%clk 0:00:44.5]} 1-0

[Event "*** Titled Tuesday Blitz"]
[Site "Chess.com"]
[Date "2020.02.04"]
[Round "1"]
[White "quesfr"]
[Black "Shukh_Nikolay"]
[Result "0-1"]
[WhiteElo "2028"]
[BlackElo "2529"]
[TimeControl "180+2"]
[EndTime "13:09:21 PST"]
[Termination "Shukh_Nikolay won by resignation"]

1. e4 {[%clk 0:02:59.8]} 1... e5 {[%clk 0:03:00.5]} 2. Nf3 {[%clk 0:02:59.4]}
2... Nc6 {[%clk 0:03:01.5]} 3. Nc3 {[%clk 0:03:00.5]} 3... Nf6 {[%clk 0:03:02]}
4. d4 {[%clk 0:03:01.6]} 4... Bb4 {[%clk 0:03:02.4]} 5. Nxe5 {[%clk 0:03:01.1]}
5... O-O {[%clk 0:03:02.9]} 6. Qd3 {[%clk 0:03:00.5]} 6... Re8 {[%clk
0:03:02.9]} 7. Nxc6 {[%clk 0:02:58.9]} 7... dxc6 {[%clk 0:03:03.8]} 8. Bd2
{[%clk 0:02:47.2]} 8... Bxc3 {[%clk 0:02:54.6]} 9. Bxc3 {[%clk 0:02:47.7]} 9...
Nxe4 {[%clk 0:02:56.1]} 10. Be2 {[%clk 0:02:32.1]} 10... Bf5 {[%clk 0:02:54.6]}
11. Qf3 {[%clk 0:02:16.6]} 11... Nxc3 {[%clk 0:02:52]} 12. Qxc3 {[%clk
0:02:15.8]} 12... Qd5 {[%clk 0:02:47.4]} 13. f3 {[%clk 0:02:07.3]} 13... Rad8
{[%clk 0:02:44.6]} 14. Rd1 {[%clk 0:02:03.2]} 14... Qxa2 {[%clk 0:02:35.3]} 15.
Kf2 {[%clk 0:01:59.8]} 15... Qe6 {[%clk 0:02:23.4]} 16. Rhe1 {[%clk 0:01:56]}
16... Qh6 {[%clk 0:02:21.9]} 17. Kg1 {[%clk 0:01:50.2]} 17... Re3 {[%clk
0:01:54]} 18. Qc5 {[%clk 0:01:38.5]} 18... b6 {[%clk 0:01:47.4]} 19. Qxf5 {[%clk
0:01:37]} 19... Rde8 {[%clk 0:01:45.3]} 20. c3 {[%clk 0:00:28.2]} 20... Qh4
{[%clk 0:01:13.2]} 21. Qc2 {[%clk 0:00:22.4]} 21... g6 {[%clk 0:01:07.3]} 22.
Qd2 {[%clk 0:00:14.5]} 22... h5 {[%clk 0:01:04.8]} 23. g3 {[%clk 0:00:15.5]}
23... Qe7 {[%clk 0:01:05.2]} 24. Kf2 {[%clk 0:00:16.1]} 24... Qf6 {[%clk
0:01:01.8]} 25. f4 {[%clk 0:00:14.8]} 25... g5 {[%clk 0:00:50.8]} 26. Bf3 {[%clk
0:00:16]} 26... gxf4 {[%clk 0:00:45.7]} 27. gxf4 {[%clk 0:00:13.4]} 27... Qh4+
{[%clk 0:00:46.1]} 28. Kg2 {[%clk 0:00:14.6]} 28... Rxe1 {[%clk 0:00:46]} 29.
Rxe1 {[%clk 0:00:15.5]} 29... Qxe1 {[%clk 0:00:44.5]} 30. Qc2 {[%clk 0:00:09]}
30... Qe6 {[%clk 0:00:37.6]} 31. Qa4 {[%clk 0:00:08.7]} 31... Qg6+ {[%clk
0:00:35.8]} 32. Kf2 {[%clk 0:00:08.8]} 32... a5 {[%clk 0:00:29]} 33. Bxc6 {[%clk
0:00:08.5]} 33... Re7 {[%clk 0:00:29]} 34. Bf3 {[%clk 0:00:08.9]} 34... Qf6
{[%clk 0:00:26.2]} 35. Qa3 {[%clk 0:00:08.5]} 35... Re6 {[%clk 0:00:23.2]} 36.
d5 {[%clk 0:00:08.4]} 36... Rd6 {[%clk 0:00:21.6]} 37. Qa4 {[%clk 0:00:08.6]}
37... Qf5 {[%clk 0:00:21.3]} 38. Qc4 {[%clk 0:00:07.8]} 38... Rd7 {[%clk
0:00:20.6]} 39. Qe2 {[%clk 0:00:07.5]} 39... Kg7 {[%clk 0:00:21.3]} 40. Qe3
{[%clk 0:00:07.6]} 40... Kf8 {[%clk 0:00:21.1]} 41. b3 {[%clk 0:00:07.4]} 41...
Re7 {[%clk 0:00:22.1]} 42. Qd4 {[%clk 0:00:07.4]} 42... Kg8 {[%clk 0:00:23.2]}
43. d6 {[%clk 0:00:07.5]} 43... cxd6 {[%clk 0:00:23.7]} 44. Qxd6 {[%clk
0:00:08.7]} 44... Qc5+ {[%clk 0:00:25]} 45. Qxc5 {[%clk 0:00:08.8]} 45... bxc5
{[%clk 0:00:26.7]} 46. Bxh5 {[%clk 0:00:10]} 46... Re4 {[%clk 0:00:26.6]} 47.
Kf3 {[%clk 0:00:09.2]} 47... Re1 {[%clk 0:00:27.4]} 48. Kf2 {[%clk 0:00:08.2]}
48... Rc1 {[%clk 0:00:28.3]} 49. c4 {[%clk 0:00:08.4]} 49... Rc2+ {[%clk
0:00:29.4]} 50. Kg3 {[%clk 0:00:08.9]} 50... Rc3+ {[%clk 0:00:30.5]} 51. Kg4
{[%clk 0:00:10.3]} 51... Rxb3 {[%clk 0:00:32]} 52. Kg5 {[%clk 0:00:11.2]} 52...
a4 {[%clk 0:00:33.2]} 53. Bd1 {[%clk 0:00:10.9]} 53... Rb4 {[%clk 0:00:33.5]}
54. Be2 {[%clk 0:00:10.8]} 54... a3 {[%clk 0:00:34.5]} 0-1

[Event "*** Titled Tuesday Blitz"]
[Site "Chess.com"]
[Date "2020.02.04"]
[Round "1"]
[White "MathiasWomacka"]
[Black "Miguelito"]
[Result "0-1"]
[WhiteElo "2389"]
[BlackElo "2732"]
[TimeControl "180+2"]
[EndTime "13:09:26 PST"]
[Termination "Miguelito won by resignation"]

1. e4 {[%clk 0:02:52.6]} 1... c5 {[%clk 0:03:00.6]} 2. Nf3 {[%clk 0:02:53.1]}
2... Nc6 {[%clk 0:03:01.8]} 3. d4 {[%clk 0:02:54.1]} 3... cxd4 {[%clk
0:03:03.3]} 4. Nxd4 {[%clk 0:02:55.9]} 4... Nf6 {[%clk 0:03:05]} 5. Nc3 {[%clk
0:02:56.4]} 5... e5 {[%clk 0:03:06.7]} 6. Ndb5 {[%clk 0:02:57.5]} 6... d6 {[%clk
0:03:08.3]} 7. Bg5 {[%clk 0:02:58.5]} 7... a6 {[%clk 0:03:07.9]} 8. Na3 {[%clk
0:02:59.5]} 8... b5 {[%clk 0:03:07.2]} 9. Nd5 {[%clk 0:03:00.7]} 9... Be7 {[%clk
0:03:08.3]} 10. Bxf6 {[%clk 0:03:01]} 10... Bxf6 {[%clk 0:03:09.8]} 11. c3
{[%clk 0:03:02.3]} 11... Rb8 {[%clk 0:03:11.4]} 12. Nc2 {[%clk 0:03:00.5]} 12...
Bg5 {[%clk 0:03:12.8]} 13. a4 {[%clk 0:02:59]} 13... bxa4 {[%clk 0:03:11.2]} 14.
Ncb4 {[%clk 0:03:00]} 14... Nxb4 {[%clk 0:03:10]} 15. cxb4 {[%clk 0:02:58.5]}
15... a5 {[%clk 0:03:02.3]} 16. Qxa4+ {[%clk 0:02:56.5]} 16... Bd7 {[%clk
0:03:00.1]} 17. Qxa5 {[%clk 0:02:57.7]} 17... O-O {[%clk 0:03:00.3]} 18. Qxd8
{[%clk 0:02:50.5]} 18... Bxd8 {[%clk 0:03:00.3]} 19. Bc4 {[%clk 0:02:43.5]}
19... Bb6 {[%clk 0:02:57.4]} 20. Nxb6 {[%clk 0:02:32]} 20... Rxb6 {[%clk
0:02:56]} 21. O-O {[%clk 0:02:16.2]} 21... Rxb4 {[%clk 0:02:55.3]} 22. b3 {[%clk
0:02:17.5]} 22... Bb5 {[%clk 0:02:52]} 23. Rfc1 {[%clk 0:02:05.3]} 23... Bxc4
{[%clk 0:02:38.9]} 24. bxc4 {[%clk 0:02:06.5]} 24... Rc8 {[%clk 0:02:39.7]} 25.
Ra6 {[%clk 0:02:04.2]} 25... g6 {[%clk 0:02:38.7]} 26. Rxd6 {[%clk 0:02:04.9]}
26... Rcxc4 {[%clk 0:02:39.9]} 27. Rdd1 {[%clk 0:01:51.9]} 27... Rxc1 {[%clk
0:02:33.8]} 28. Rxc1 {[%clk 0:01:52.4]} 28... Rxe4 {[%clk 0:02:35.7]} 29. g3
{[%clk 0:01:53.2]} 29... Kg7 {[%clk 0:02:35.3]} 30. Kg2 {[%clk 0:01:54.1]} 30...
g5 {[%clk 0:02:33.7]} 31. Kf3 {[%clk 0:01:49]} 31... Rd4 {[%clk 0:02:33.8]} 32.
g4 {[%clk 0:01:50.1]} 32... Kg6 {[%clk 0:02:29.5]} 33. Rc7 {[%clk 0:01:37.5]}
33... f6 {[%clk 0:02:26.8]} 34. Rc6 {[%clk 0:01:34.5]} 34... Rf4+ {[%clk
0:02:24.6]} 35. Kg3 {[%clk 0:01:35.5]} 35... h5 {[%clk 0:02:25.3]} 36. h3 {[%clk
0:01:31.3]} 36... Kg7 {[%clk 0:02:15.9]} 37. Rc7+ {[%clk 0:01:24.5]} 37... Kg6
{[%clk 0:02:17]} 38. Rc6 {[%clk 0:01:25]} 38... h4+ {[%clk 0:02:11.4]} 39. Kg2
{[%clk 0:01:25.2]} 39... Kf7 {[%clk 0:02:08.5]} 40. Ra6 {[%clk 0:01:25.9]} 40...
Rd4 {[%clk 0:02:08.2]} 41. Rb6 {[%clk 0:01:25.6]} 41... Ke7 {[%clk 0:02:09.3]}
42. Ra6 {[%clk 0:01:26]} 42... Rd6 {[%clk 0:02:10.4]} 43. Ra5 {[%clk 0:01:26.2]}
43... Ke6 {[%clk 0:02:11.4]} 44. Kf3 {[%clk 0:01:22.6]} 44... Rd3+ {[%clk
0:02:07.1]} 45. Kg2 {[%clk 0:01:23.4]} 45... Rd6 {[%clk 0:02:05.1]} 46. Kf3
{[%clk 0:01:23.9]} 46... Kd7 {[%clk 0:02:06.5]} 47. Kg2 {[%clk 0:01:11.1]} 47...
Kc6 {[%clk 0:02:07.2]} 48. Kf3 {[%clk 0:01:11.6]} 48... Kb6 {[%clk 0:02:07.8]}
49. Ra8 {[%clk 0:01:12]} 49... Kc5 {[%clk 0:02:07.3]} 50. Kg2 {[%clk 0:01:08.8]}
50... Kd4 {[%clk 0:02:05.5]} 51. Ra4+ {[%clk 0:01:09.2]} 51... Kd3 {[%clk
0:02:06.3]} 52. Ra3+ {[%clk 0:01:08.6]} 52... Kc4 {[%clk 0:02:06.9]} 53. Ra8
{[%clk 0:01:06.3]} 53... Rc6 {[%clk 0:02:05.9]} 54. Ra7 {[%clk 0:01:05.9]} 54...
Kd5 {[%clk 0:02:06.8]} 55. Ra5+ {[%clk 0:01:06.3]} 55... Kd4 {[%clk 0:02:07.1]}
56. Ra4+ {[%clk 0:01:06.8]} 56... Kd5 {[%clk 0:02:08.2]} 57. Ra5+ {[%clk
0:01:08]} 57... Ke6 {[%clk 0:02:09.4]} 58. Rb5 {[%clk 0:01:08.5]} 58... Rd6
{[%clk 0:02:10.2]} 59. Ra5 {[%clk 0:01:09.5]} 59... e4 {[%clk 0:02:08.9]} 60.
Rb5 {[%clk 0:01:01.3]} 60... Rd5 {[%clk 0:02:09.4]} 61. Rb8 {[%clk 0:01:01.5]}
61... Ke5 {[%clk 0:02:06.8]} 62. Re8+ {[%clk 0:00:55.4]} 62... Kf4 {[%clk
0:02:01.2]} 63. Rf8 {[%clk 0:00:56.4]} 63... Rd6 {[%clk 0:01:59.9]} 64. Rf7
{[%clk 0:00:57.5]} 64... e3 {[%clk 0:01:50.8]} 65. fxe3+ {[%clk 0:00:57.5]}
65... Kxe3 {[%clk 0:01:51]} 66. Ra7 {[%clk 0:00:53.8]} 66... Rd2+ {[%clk
0:01:50.6]} 67. Kg1 {[%clk 0:00:54.7]} 67... Ke4 {[%clk 0:01:38.9]} 68. Ra6
{[%clk 0:00:52.7]} 68... Kf4 {[%clk 0:01:34.4]} 69. Ra3 {[%clk 0:00:49.1]} 69...
Re2 {[%clk 0:01:34.8]} 70. Kf1 {[%clk 0:00:36.1]} 70... Re3 {[%clk 0:01:35.1]}
71. Ra6 {[%clk 0:00:35.8]} 71... Kg3 {[%clk 0:01:35.2]} 72. Rxf6 {[%clk
0:00:36.6]} 72... Rf3+ {[%clk 0:01:36.2]} 73. Rxf3+ {[%clk 0:00:36.5]} 73...
Kxf3 {[%clk 0:01:37.8]} 0-1

[Event "*** Titled Tuesday Blitz"]
[Site "Chess.com"]
[Date "2020.02.04"]
[Round "1"]
[White "matiss90"]
[Black "politeplayer"]
[Result "1-0"]
[WhiteElo "2554"]
[BlackElo "2141"]
[TimeControl "180+2"]
[EndTime "13:09:26 PST"]
[Termination "matiss90 won by resignation"]

1. e4 {[%clk 0:03:00.8]} 1... c5 {[%clk 0:03:00.4]} 2. Nf3 {[%clk 0:03:01.4]}
2... d6 {[%clk 0:03:01.4]} 3. d4 {[%clk 0:03:02.3]} 3... cxd4 {[%clk 0:03:02.5]}
4. Nxd4 {[%clk 0:03:04.2]} 4... Nf6 {[%clk 0:03:03.5]} 5. Nc3 {[%clk 0:03:05.8]}
5... g6 {[%clk 0:03:04.7]} 6. Be3 {[%clk 0:03:06.2]} 6... Bg7 {[%clk 0:03:05.7]}
7. f3 {[%clk 0:03:07.5]} 7... O-O {[%clk 0:03:06.6]} 8. Bc4 {[%clk 0:03:08.1]}
8... Nc6 {[%clk 0:03:08]} 9. Qd2 {[%clk 0:03:08.7]} 9... Bd7 {[%clk 0:03:08.8]}
10. Bb3 {[%clk 0:03:09.4]} 10... Rc8 {[%clk 0:03:08.9]} 11. g4 {[%clk
0:03:10.5]} 11... Nxd4 {[%clk 0:03:01.2]} 12. Bxd4 {[%clk 0:03:10.3]} 12... b5
{[%clk 0:03:02.4]} 13. h4 {[%clk 0:03:08]} 13... b4 {[%clk 0:03:01.5]} 14. Nd5
{[%clk 0:03:08.6]} 14... Nxd5 {[%clk 0:02:54.1]} 15. Bxg7 {[%clk 0:03:07.7]}
15... Kxg7 {[%clk 0:02:50.2]} 16. exd5 {[%clk 0:03:03.6]} 16... h6 {[%clk
0:02:42]} 17. Qxb4 {[%clk 0:02:59.2]} 17... a5 {[%clk 0:02:39.7]} 18. Qd4+
{[%clk 0:02:59.2]} 18... f6 {[%clk 0:02:36.2]} 19. O-O-O {[%clk 0:02:57.3]}
19... Rc5 {[%clk 0:02:30.9]} 20. c3 {[%clk 0:02:40.1]} 20... Qa8 {[%clk
0:02:25]} 21. Rde1 {[%clk 0:02:36.5]} 21... Rf7 {[%clk 0:02:12.2]} 22. g5 {[%clk
0:02:36.3]} 22... a4 {[%clk 0:01:59]} 23. Bc2 {[%clk 0:02:27.4]} 23... Qxd5
{[%clk 0:01:31.7]} 24. Rxe7 {[%clk 0:02:16.2]} 24... Qxd4 {[%clk 0:00:59.9]} 25.
Rxf7+ {[%clk 0:02:12]} 25... Kxf7 {[%clk 0:01:00.7]} 26. cxd4 {[%clk 0:02:13.1]}
26... Rc4 {[%clk 0:00:55.5]} 27. gxh6 {[%clk 0:01:56.1]} 27... Bf5 {[%clk
0:00:54.8]} 28. Rh2 {[%clk 0:01:56.6]} 28... Rxd4 {[%clk 0:00:39.5]} 29. Bxf5
{[%clk 0:01:52.4]} 29... gxf5 {[%clk 0:00:40.8]} 30. Rd2 {[%clk 0:01:26.5]}
30... Rc4+ {[%clk 0:00:18.7]} 31. Kb1 {[%clk 0:01:22.6]} 31... Rxh4 {[%clk
0:00:16.7]} 32. Rxd6 {[%clk 0:01:22.7]} 32... Rxh6 {[%clk 0:00:17.4]} 33. Rd4
{[%clk 0:01:19.6]} 33... a3 {[%clk 0:00:15.7]} 34. bxa3 {[%clk 0:01:16.4]} 34...
Rh3 {[%clk 0:00:16.3]} 35. f4 {[%clk 0:01:07]} 35... Rh2 {[%clk 0:00:14.1]} 36.
a4 {[%clk 0:01:06.6]} 36... Ke6 {[%clk 0:00:14.5]} 37. a5 {[%clk 0:01:06.9]}
37... Rh7 {[%clk 0:00:14.2]} 38. a6 {[%clk 0:01:07.6]} 38... Ra7 {[%clk
0:00:14.3]} 39. Ra4 {[%clk 0:01:08.3]} 39... Kd5 {[%clk 0:00:15.1]} 40. Kc2
{[%clk 0:01:07.2]} 40... Kc5 {[%clk 0:00:16.3]} 41. Ra5+ {[%clk 0:01:05.5]}
41... Kb4 {[%clk 0:00:14.6]} 42. Rxf5 {[%clk 0:01:04.7]} 42... Rxa6 {[%clk
0:00:15.7]} 43. Kb2 {[%clk 0:00:55.8]} 43... Kc4 {[%clk 0:00:16.8]} 44. a3
{[%clk 0:00:48.4]} 44... Kd4 {[%clk 0:00:17.6]} 45. Rb5 {[%clk 0:00:49]} 45...
Ke4 {[%clk 0:00:18.1]} 46. f5 {[%clk 0:00:50.2]} 46... Kd4 {[%clk 0:00:16]} 47.
Kb3 {[%clk 0:00:50.9]} 47... Rc6 {[%clk 0:00:16.1]} 48. a4 {[%clk 0:00:48]}
48... Rc3+ {[%clk 0:00:16.5]} 49. Kb4 {[%clk 0:00:48.8]} 49... Rc4+ {[%clk
0:00:16.1]} 50. Ka5 {[%clk 0:00:49.6]} 50... Ke4 {[%clk 0:00:13.5]} 51. Rb4
{[%clk 0:00:46.2]} 51... Rxb4 {[%clk 0:00:12.2]} 52. Kxb4 {[%clk 0:00:48.1]}
52... Kxf5 {[%clk 0:00:12]} 53. a5 {[%clk 0:00:48.8]} 53... Kg4 {[%clk
0:00:13.6]} 54. a6 {[%clk 0:00:49.6]} 54... f5 {[%clk 0:00:15.2]} 55. a7 {[%clk
0:00:50.6]} 55... f4 {[%clk 0:00:16.8]} 56. a8=Q {[%clk 0:00:51.5]} 56... f3
{[%clk 0:00:18.4]} 57. Qg8+ {[%clk 0:00:45.1]} 57... Kh3 {[%clk 0:00:18.8]} 58.
Qg1 {[%clk 0:00:45]} 1-0

[Event "*** Titled Tuesday Blitz"]
[Site "Chess.com"]
[Date "2020.02.04"]
[Round "1"]
[White "Sajkochess"]
[Black "Witik"]
[Result "1/2-1/2"]
[WhiteElo "2301"]
[BlackElo "2620"]
[TimeControl "180+2"]
[EndTime "13:09:27 PST"]
[Termination "Game drawn by agreement"]

1. e4 {[%clk 0:03:01.4]} 1... c6 {[%clk 0:03:00.2]} 2. d4 {[%clk 0:03:01.6]}
2... d5 {[%clk 0:03:00.8]} 3. Nc3 {[%clk 0:02:58.2]} 3... dxe4 {[%clk 0:03:02]}
4. Nxe4 {[%clk 0:02:58.6]} 4... Nf6 {[%clk 0:03:03.9]} 5. Nxf6+ {[%clk
0:02:56.7]} 5... exf6 {[%clk 0:03:05.8]} 6. Bc4 {[%clk 0:02:57.7]} 6... Be7
{[%clk 0:03:01.8]} 7. Ne2 {[%clk 0:02:45.8]} 7... O-O {[%clk 0:03:01.3]} 8. O-O
{[%clk 0:02:45.1]} 8... Nd7 {[%clk 0:03:00.2]} 9. c3 {[%clk 0:02:35.5]} 9... Nb6
{[%clk 0:02:55.6]} 10. Bd3 {[%clk 0:02:36.3]} 10... Re8 {[%clk 0:02:54.7]} 11.
Qc2 {[%clk 0:02:36.6]} 11... h5 {[%clk 0:02:53.8]} 12. Ng3 {[%clk 0:02:34.3]}
12... h4 {[%clk 0:02:51.1]} 13. Nf5 {[%clk 0:02:35.2]} 13... h3 {[%clk
0:02:49.6]} 14. g3 {[%clk 0:02:30.7]} 14... Bf8 {[%clk 0:02:48.2]} 15. Bf4
{[%clk 0:02:25.3]} 15... c5 {[%clk 0:01:59.6]} 16. Rfe1 {[%clk 0:02:13.9]} 16...
Qd5 {[%clk 0:01:50.3]} 17. Ne3 {[%clk 0:01:56.8]} 17... Qc6 {[%clk 0:01:28]} 18.
d5 {[%clk 0:01:23.8]} 18... Nxd5 {[%clk 0:01:23.7]} 19. Nxd5 {[%clk 0:01:12.1]}
19... Qxd5 {[%clk 0:00:44]} 20. Bh7+ {[%clk 0:01:12.4]} 20... Kh8 {[%clk
0:00:44.5]} 21. Be4 {[%clk 0:01:14.3]} 21... Bf5 {[%clk 0:00:44]} 22. Bxd5
{[%clk 0:01:13.2]} 22... Bxc2 {[%clk 0:00:45]} 23. Bxb7 {[%clk 0:01:04.4]} 23...
Rad8 {[%clk 0:00:43.3]} 24. Bc6 {[%clk 0:01:03.7]} 24... Rxe1+ {[%clk
0:00:43.4]} 25. Rxe1 {[%clk 0:01:05.6]} 25... g5 {[%clk 0:00:43.3]} 26. Be3
{[%clk 0:00:51]} 26... a5 {[%clk 0:00:33.4]} 27. f3 {[%clk 0:00:46.5]} 27... Kg7
{[%clk 0:00:33.4]} 28. Kf2 {[%clk 0:00:47]} 28... c4 {[%clk 0:00:27.6]} 29. Be4
{[%clk 0:00:44.1]} 29... Bxe4 {[%clk 0:00:25.2]} 30. fxe4 {[%clk 0:00:46]} 30...
Rb8 {[%clk 0:00:15.6]} 31. Re2 {[%clk 0:00:45.1]} 31... Kg6 {[%clk 0:00:15.4]}
32. g4 {[%clk 0:00:44]} 32... Bd6 {[%clk 0:00:15.3]} 33. Kf3 {[%clk 0:00:44.8]}
33... Be5 {[%clk 0:00:16.2]} 34. Bd4 {[%clk 0:00:44.1]} 34... a4 {[%clk
0:00:17.7]} 35. Rd2 {[%clk 0:00:35.6]} 35... Bf4 {[%clk 0:00:19]} 36. Be3 {[%clk
0:00:34.6]} 36... Be5 {[%clk 0:00:20.5]} 37. Rc2 {[%clk 0:00:25.2]} 37... a3
{[%clk 0:00:21.4]} 38. bxa3 {[%clk 0:00:20.6]} 38... Ra8 {[%clk 0:00:22.6]} 39.
Bc5 {[%clk 0:00:20.3]} 39... Rd8 {[%clk 0:00:23.8]} 40. Bd4 {[%clk 0:00:14.9]}
40... Bxd4 {[%clk 0:00:23.1]} 41. cxd4 {[%clk 0:00:16.2]} 41... Rxd4 {[%clk
0:00:25]} 42. Rc3 {[%clk 0:00:14.6]} 42... Rd2 {[%clk 0:00:25.1]} 43. Kg3 {[%clk
0:00:15.7]} 43... Rxa2 {[%clk 0:00:22.7]} 44. Kxh3 {[%clk 0:00:16.8]} 44... Rb2
{[%clk 0:00:16.7]} 45. Rxc4 {[%clk 0:00:17.1]} 45... Rb3+ {[%clk 0:00:18.2]} 46.
Kg2 {[%clk 0:00:18.3]} 46... Rxa3 {[%clk 0:00:19.7]} 47. Rc6 {[%clk 0:00:19]}
47... Re3 {[%clk 0:00:19]} 48. Rc4 {[%clk 0:00:19.8]} 48... Kg7 {[%clk
0:00:20.2]} 49. Kf2 {[%clk 0:00:20.8]} 49... Rh3 {[%clk 0:00:20.3]} 50. Kg2
{[%clk 0:00:21.1]} 50... Ra3 {[%clk 0:00:21.9]} 51. Rc5 {[%clk 0:00:21.7]} 51...
Kf8 {[%clk 0:00:22.8]} 52. e5 {[%clk 0:00:22.8]} 52... Kg7 {[%clk 0:00:23.9]}
53. exf6+ {[%clk 0:00:23.4]} 53... Kxf6 {[%clk 0:00:25.5]} 54. Rf5+ {[%clk
0:00:24.3]} 54... Kg6 {[%clk 0:00:26.7]} 55. Rf3 {[%clk 0:00:25.2]} 1/2-1/2